[Event "European Corporate Championship 2022"]
[Site "Rotterdam"]
[Date "2022.06.18"]
[Round "2.1"]
[White "Van Wely, Loek"]
[Black "Barski, Radoslaw"]
[Result "1/2-1/2"]
[ECO "A13"]
[WhiteElo "2618"]
[BlackElo "2434"]
[Annotator "TA"]
[PlyCount "136"]
[EventDate "2022.06.18"]
[EventType "team-tourn"]
[EventCountry "NED"]
[SourceTitle "playchess.com"]
[Source "ChessBase"]
[SourceQuality "1"]
[TimeControl "900+5"]

{[%evp 14,136,31,0,37,37,77,13,61,70,160,108,124,64,106,115,99,106,105,99,237,213,236,79,71,77,65,34,23,11,11,0,4,0,0,0,0,-8,-4,-1,0,0,0,-5,4,4,11,-4,-9,-14,-9,-13,-13,-552,-542,-547,-543,-506,-383,-417,-408,-413,-409,-441,-436,-428,-379,-412,-403,-382,-343,-493,-304,-292,-295,-369,-149,-144,-152,-335,-136,-160,0,-329,-18,-18,0,0,0,-47,-47,-37,-37,-44,0,0,0,0,0,0,7,7,8,8,8,8,8,8,8,8,8,8,8,0,0,0,8,0,0,0,0,0,0,0,0]} 1. Nf3 {[%emt 0:00:03]} d5 {[%emt 0:00:05]} 2. c4 {[%emt 0:00:01]} e6 {[%emt 0:00:02]} 3. g3 {[%emt 0:00:02]} Nf6 {[%emt 0:00:07]} 4. Bg2 {[%emt 0:00:02]} dxc4 {[%emt 0:00:16]} 5. Qa4+ {[%emt 0:00:06]} Nbd7 {[%emt 0:00:06]} 6. Qxc4 {[%emt 0:00:11]} a6 {[%emt 0:00:22]} 7. Qc2 {[%emt 0:00:30]} c5 {[%emt 0:00:01]} 8. O-O {[%emt 0:00:25]} Ra7 {[%emt 0:00:56] A13: English Opening: 1...e6.} 9. d4 {[%emt 0:00:32]} b5 {[%emt 0:00:12]} 10. Rd1 {[%emt 0:00:46]} (10. Be3 $16) 10... Qb6 {[%emt 0:00:10]} (10... Bb7 $11 {is superior.}) 11. a4 {[%emt 0:00:18] [#] White is more active.} bxa4 $146 {[%emt 0:05:32]} (11... Bb7 $14) ({Predecessor:} 11... Bb7 12. axb5 axb5 13. Rxa7 Qxa7 14. Bg5 Be7 15. Na3 b4 16. Nc4 {½-½ (16) Freisler,P (2350)-Houser,P (2340) Czech Republic 1996}) 12. Rxa4 {[%emt 0:01:43]} (12. Qxa4 $6 Bb7 $16) ({Better is} 12. Nc3 $1 {[%cal Rc3a4]}) 12... Bb7 $16 {[%emt 0:02:26]} 13. Nbd2 {[%emt 0:01:05] Against Be4} (13. Nc3 $16) 13... Bc6 {[%emt 0:01:18]} 14. Ra1 {[%emt 0:00:04]} Qb7 {[%emt 0:01:45]} 15. Nc4 {[%emt 0:02:00]} Be4 {[%emt 0:00:04]} 16. Qa4 {[%emt 0:00:07]} cxd4 {[%emt 0:01:12]} (16... Bc6 $16 17. Qa5 Bd5) 17. Rxd4 $18 {[%emt 0:00:25]} Bc5 {[%emt 0:00:43] [#]} 18. Nd6+ $2 {[%emt 0:00:07]} (18. b4 $1 $18 Be7 19. Be3) 18... Bxd6 $16 {[%emt 0:00:01]} 19. Rxd6 {[%emt 0:00:01]} O-O {[%emt 0:00:34]} 20. Be3 {[%emt 0:00:59]} Raa8 {[%emt 0:00:17]} 21. b4 {[%emt 0:01:36]} Rfb8 {[%emt 0:00:25]} 22. g4 {[%emt 0:01:53]} h6 {[%emt 0:00:01]} 23. h4 {[%emt 0:00:01]} ({But not} 23. Rxa6 Rxa6 24. Qxa6 Qxb4 $15) 23... Rd8 {[%emt 0:00:18]} 24. g5 {[%emt 0:00:50]} hxg5 {[%emt 0:00:01]} 25. Bxg5 {[%emt 0:01:23]} Qc7 {[%emt 0:00:00]} 26. Rdd1 {[%emt 0:01:09]} ({Much worse is} 26. Rxa6 Rxa6 27. Qxa6 Ra8 28. Qxa8+ Bxa8 29. Rxa8+ Kh7 $17) 26... Rdb8 {[%emt 0:00:01]} 27. Rac1 {[%emt 0:00:14]} Qb7 {[%emt 0:00:03]} 28. Rd4 {[%emt 0:00:20]} e5 {[%emt 0:00:03]} 29. Rd6 {[%emt 0:00:04]} Qxb4 {[%emt 0:00:03]} 30. Qxb4 {[%emt 0:00:02]} Rxb4 {[%emt 0:00:01]} 31. Bh3 {[%emt 0:00:18]} Bxf3 {[%emt 0:00:20]} 32. exf3 {[%emt 0:00:01]} Nf8 {[%emt 0:00:01]} 33. Rc7 $2 {[%emt 0:00:12][%mdl 8192]} (33. Rc8 $11 Rxc8 34. Bxc8) 33... Ne8 $1 $19 {[%emt 0:00:04][%csl LRc7,LRd6]} 34. Rdc6 {[%emt 0:00:11]} Nxc7 {[%emt 0:00:02]} 35. Rxc7 {[%emt 0:00:01]} f6 {[%emt 0:00:06]} 36. Bd2 {[%emt 0:00:03]} Rxh4 {[%emt 0:00:03]} 37. Bf5 {[%emt 0:00:03]} Rd4 {[%emt 0:00:08]} 38. Bc3 {[%emt 0:00:09]} Rd1+ {[%emt 0:00:03]} 39. Kg2 {[%emt 0:00:03]} Rad8 {[%emt 0:00:12]} 40. Ra7 {[%emt 0:00:04]} Rc1 {[%emt 0:00:12]} 41. Bb2 {[%emt 0:00:10]} Re1 {[%emt 0:00:05] ...Rdd1 is the strong threat.} 42. Ba3 {[%emt 0:00:07]} (42. Bc3 $142 Rc1 43. Bb2) 42... g6 {[%emt 0:00:06]} 43. Bc2 {[%emt 0:00:02]} Rc8 {[%emt 0:00:05]} 44. Be4 {[%emt 0:00:03]} f5 {[%emt 0:00:01]} (44... Rd1 $19 {is more deadly.} 45. Rxa6 f5) 45. Bd5+ $17 {[%emt 0:00:02]} Kh8 {[%emt 0:00:03]} 46. Bb2 $2 {[%emt 0:00:01]} (46. f4 $17) 46... Rd8 {[%emt 0:00:05]} (46... Re2 $19 {has better winning chances.} 47. Ba3 Nh7) 47. Bc4 {[%emt 0:00:03] A strong pair of Bishops.} Rc8 $2 {[%emt 0:00:04]} (47... Nd7 $17 {[%cal Od8b8] aiming for ...Rb8!} 48. Bxa6 Rb8) 48. Bd5 $1 $19 {[%emt 0:00:02]} Rb8 $2 {[%emt 0:00:00]} (48... Re2 $19 49. Ba3 Nh7 50. Rxa6 Rcc2 51. Rxg6 Rxf2+ 52. Kg1 {[#]} Ng5 $1 {[%mdl 512]} 53. Rxg5 Rfd2) 49. Bc3 $11 {[%emt 0:00:03]} Re2 {[%emt 0:00:05]} 50. f4 $1 {[%emt 0:00:06]} Rd8 {[%emt 0:00:08]} 51. Bc4 {[%emt 0:00:04]} (51. Kf1 $11 {feels stronger.}) 51... Rc8 $15 {[%emt 0:00:10]} 52. Bxe2 {[%emt 0:00:09]} Rxc3 {[%emt 0:00:00]} 53. fxe5 {[%emt 0:00:03]} Rc6 {[%emt 0:00:01]} (53... Ne6 $5 {[%cal Re6f4]} 54. Bf3 (54. Bxa6 Nf4+ 55. Kh2 Rh3+ 56. Kg1 Ra3 $17) 54... Rc5 55. Rxa6 Rxe5 $17) 54. Rxa6 {[%emt 0:00:08] The position is equal.} Rxa6 {[%emt 0:00:02]} 55. Bxa6 $11 {[%emt 0:00:01][%mdl 4096] Endgame KB-KN} Kg7 {[%emt 0:00:10]} 56. Bc8 {[%emt 0:00:02]} Kf7 {[%emt 0:00:07]} 57. Kg3 {[%emt 0:00:01]} Ke7 {[%emt 0:00:04]} 58. Kh4 {[%emt 0:00:12]} Kd8 {[%emt 0:00:07]} 59. Ba6 {[%emt 0:00:01]} Ke7 {[%emt 0:00:07]} 60. Bc4 {[%emt 0:00:17] Strongly threatening Kg5.} Nd7 $1 {[%emt 0:00:07]} 61. f4 {[%emt 0:00:01] Black must now prevent Kg5.} Kf8 $1 {[%emt 0:00:06]} 62. Kg5 {[%emt 0:00:18]} Kg7 $1 {[%emt 0:00:16]} 63. e6 {[%emt 0:00:05]} Nf6 {[%emt 0:00:00]} 64. e7 {[%emt 0:00:01]} Ne4+ {[%emt 0:00:00]} 65. Kh4 {[%emt 0:00:02]} Nd6 {[%emt 0:00:00]} 66. Kg5 {[%emt 0:00:07]} Ne4+ {[%emt 0:00:20]} 67. Kh4 {[%emt 0:00:02]} Nd6 {[%emt 0:00:00]} 68. Kg5 {[%emt 0:00:07]} Ne4+ {[%emt 0:00:10] White used his chance.  Weighted Error Value: White=0.37/Black=0.41} 1/2-1/2

[Event "European Corporate Championship 2022"]
[Site "Rotterdam"]
[Date "2022.06.18"]
[Round "2.2"]
[White "Celinski, Kamil"]
[Black "Rietman, Frits"]
[Result "1/2-1/2"]
[ECO "B01"]
[WhiteElo "1907"]
[BlackElo "2237"]
[Annotator "TA"]
[PlyCount "97"]
[EventDate "2022.06.18"]
[EventType "team-tourn"]
[EventCountry "NED"]
[SourceTitle "playchess.com"]
[Source "ChessBase"]
[SourceQuality "1"]
[TimeControl "900+5"]

{[%evp 9,97,36,66,43,58,52,48,25,36,14,26,29,28,13,33,15,14,8,15,11,25,8,17,11,22,0,2,1,2,-25,0,0,0,0,4,1,25,25,27,2,68,68,76,74,81,72,77,57,131,83,102,88,366,352,313,64,77,0,0,-79,-78,-132,-93,-86,-86,-172,-178,-240,-230,-253,-253,-253,-253,-245,-245,-245,-245,-191,-23,-72,-72,-72,0,-11,0,-11,0,0,0,-12]} 1. e4 {[%emt 0:00:02]} d5 {[%emt 0:00:02]} 2. exd5 {[%emt 0:00:04]} Qxd5 {[%emt 0:00:02]} 3. Nc3 {[%emt 0:00:02]} Qd6 {[%emt 0:00:02]} 4. Nf3 {[%emt 0:00:04]} Nf6 {[%emt 0:00:04]} 5. d4 {[%emt 0:00:02]} c6 {[%emt 0:00:02]} 6. g3 {[%emt 0:00:26] B01: Scandinavian Defence.} Bg4 {[%emt 0:00:07]} 7. Bg2 {[%emt 0:00:03]} e6 {[%emt 0:00:14]} 8. Bf4 {[%emt 0:00:12] White is slightly better.} Qd8 {[%emt 0:00:04]} 9. Qd2 {[%emt 0:00:15]} Bxf3 {[%emt 0:00:43]} 10. Bxf3 {[%emt 0:00:05]} Bd6 {[%emt 0:00:09]} 11. O-O {[%emt 0:01:05]} O-O {[%emt 0:01:03]} 12. Rad1 {[%emt 0:00:35]} Bxf4 {[%emt 0:00:59]} 13. Qxf4 {[%emt 0:00:05] [#]} Nbd7 $146 {[%emt 0:00:44][%cal Bb8d7,Bd7b6,Bb6d5,Bd5f6][%mdl 32]} ({Predecessor:} 13... Na6 14. Ne4 Nxe4 15. Bxe4 Qa5 16. a3 Rad8 17. c4 Qc7 18. Qh4 g6 19. Rd2 e5 {½-½ (84) Vujacic,I (2194)-Abramovic,D (2089) Podgorica 2014}) 14. Rfe1 {[%emt 0:00:29]} Nb6 {[%emt 0:00:38]} 15. Ne4 {[%emt 0:01:54]} Nxe4 {[%emt 0:01:34]} 16. Bxe4 {[%emt 0:00:34]} a5 {[%emt 0:00:25]} 17. Bd3 {[%emt 0:00:52]} Nd5 {[%emt 0:01:36]} 18. Qe4 {[%emt 0:00:06][%csl Gd3][%cal Re4h7] [#]} Nf6 {[%emt 0:00:06]} 19. Qf3 {[%emt 0:00:02]} Qd5 {[%emt 0:00:24]} 20. Qxd5 {[%emt 0:00:47]} cxd5 {[%emt 0:00:06]} 21. a4 {[%emt 0:00:20]} Rfc8 {[%emt 0:00:23]} 22. c3 {[%emt 0:00:07]} Ne8 {[%emt 0:00:34]} 23. f4 {[%emt 0:01:11]} Nd6 {[%emt 0:00:12]} 24. f5 {[%emt 0:00:29]} exf5 {[%emt 0:00:05]} (24... Nxf5 $11 25. Bxf5 exf5) 25. Re5 $14 {[%emt 0:00:01][%csl LRd5,LRf5]} Nc4 {[%emt 0:00:39]} 26. Bxc4 {[%emt 0:00:17]} Rxc4 {[%emt 0:00:04]} 27. Rxd5 $16 {[%emt 0:00:07][%mdl 4096] Endgame KRR-KRR} (27. Rxf5 Rd8 $11) 27... g6 {[%emt 0:02:01]} 28. Rb5 {[%emt 0:00:42]} Re8 {[%emt 0:01:13]} (28... Rxa4 $14 29. Rxb7 Kf8) 29. Kf2 {[%emt 0:02:18]} (29. Rxa5 $142 Kf8 30. Kf2) 29... Rxa4 {[%emt 0:01:00]} 30. Rxb7 {[%emt 0:00:03]} Ra2 $2 {[%emt 0:00:18][%mdl 8192] [#]} (30... h5 $16) 31. Rd2 {[%emt 0:01:42]} a4 {[%emt 0:00:10]} 32. Kf3 $2 {[%emt 0:00:57]} (32. d5 $18) 32... Rc8 {[%emt 0:00:13]} 33. Re2 {[%emt 0:01:07] White is more active.} (33. Rc2 $16) 33... a3 $11 {[%emt 0:00:08]} 34. bxa3 {[%emt 0:00:31]} (34. Kf4 $11 {remains equal.}) 34... Rxc3+ $17 {[%emt 0:00:17]} 35. Kf2 {[%emt 0:00:12]} ({Better is} 35. Re3 Rxe3+ 36. Kxe3) 35... Rcxa3 {[%emt 0:00:12]} 36. Rxa2 {[%emt 0:00:06]} Rxa2+ {[%emt 0:00:01] KR-KR} 37. Kg1 {[%emt 0:00:01]} (37. Ke3 $17 {is a better defense.}) 37... Rd2 $19 {[%emt 0:00:08]} 38. Rd7 {[%emt 0:00:00]} (38. Rb4 $142) 38... Kf8 {[%emt 0:00:01]} 39. h4 {[%emt 0:00:17]} Ke8 {[%emt 0:00:03]} 40. Rd5 {[%emt 0:00:01]} Ke7 {[%emt 0:00:11]} 41. Kf1 {[%emt 0:00:04]} Ke6 {[%emt 0:00:02]} 42. Re5+ {[%emt 0:00:01]} Kf6 {[%emt 0:00:02]} 43. Rd5 {[%emt 0:00:01]} g5 $2 {[%emt 0:00:10]} ({Black should play} 43... h5 $19 {White must now prevent ...Ke6.} 44. Rd6+ Ke7) 44. Rd6+ {[%emt 0:00:08]} (44. hxg5+ $11 Kxg5 45. Rd7) 44... Ke7 $17 {[%emt 0:00:01]} 45. Rh6 {[%emt 0:00:11]} f4 {[%emt 0:00:30]} ({Don't play} 45... Rxd4 $6 46. hxg5 Rg4 47. Kf2 $11) (45... g4 $17) 46. gxf4 {[%emt 0:00:06] The position is equal.} gxf4 {[%emt 0:00:03]} 47. Rxh7 {[%emt 0:00:02]} Kf6 {[%emt 0:00:02]} 48. Rh5 {[%emt 0:00:04]} Rxd4 {[%emt 0:00:20]} 49. Kf2 {[%emt 0:00:20] What a bad dream for Black.  Weighted Error Value: White=0.32/Black=0.30} 1/2-1/2

[Event "European Corporate Championship 2022"]
[Site "Rotterdam"]
[Date "2022.06.18"]
[Round "2.3"]
[White "Groenewold, Jan Joris"]
[Black "Wisniewski, Jacek"]
[Result "0-1"]
[ECO "E90"]
[WhiteElo "2134"]
[BlackElo "1850"]
[Annotator "NA RC"]
[PlyCount "86"]
[EventDate "2022.06.18"]
[EventType "team-tourn"]
[EventCountry "NED"]
[SourceTitle "playchess.com"]
[Source "ChessBase"]
[SourceQuality "1"]
[TimeControl "900+5"]

1. d4 {[%emt 0:00:04]} Nf6 {[%emt 0:00:06]} 2. Nf3 {[%emt 0:00:03]} g6 {[%emt 0:00:03]} 3. c4 {[%emt 0:00:03]} Bg7 {[%emt 0:00:04]} 4. Nc3 {[%emt 0:00:03]} O-O {[%emt 0:00:04]} 5. e4 {[%emt 0:00:02]} d6 {[%emt 0:00:06]} 6. h3 {[%emt 0:00:07]} e5 {[%emt 0:00:17]} 7. d5 {[%emt 0:00:03]} a5 {[%emt 0:00:07]} 8. Be3 {[%emt 0:00:06]} Na6 {[%emt 0:00:18]} 9. g4 {[%emt 0:00:04]} b6 {[%emt 0:00:38]} 10. Nd2 {[%emt 0:01:46]} Nc5 {[%emt 0:00:13]} 11. b3 {[%emt 0:01:18]} Ne8 {[%emt 0:01:57]} 12. g5 {[%emt 0:02:41]} f5 {[%emt 0:01:10]} 13. gxf6 {[%emt 0:00:02]} Nxf6 {[%emt 0:00:40]} 14. Be2 {[%emt 0:00:04]} Bd7 {[%emt 0:00:45]} 15. a3 {[%emt 0:00:44]} Qc8 {[%emt 0:00:29]} 16. b4 {[%emt 0:00:03]} Nb7 {[%emt 0:00:49]} 17. h4 {[%emt 0:03:19]} Ng4 {[%emt 0:00:11]} 18. Bxg4 {[%emt 0:00:10]} Bxg4 {[%emt 0:00:03]} 19. f3 {[%emt 0:01:05]} axb4 {[%emt 0:00:58]} 20. axb4 {[%emt 0:01:35]} Rxa1 {[%emt 0:00:15]} 21. Qxa1 {[%emt 0:00:02]} Bxf3 {[%emt 0:00:07]} 22. Nxf3 {[%emt 0:00:24]} Rxf3 {[%emt 0:00:04]} 23. Kd2 {[%emt 0:00:06]} Nd8 {[%emt 0:01:13]} 24. Qd1 {[%emt 0:01:01]} Rh3 {[%emt 0:00:40]} 25. h5 {[%emt 0:00:19]} gxh5 {[%emt 0:01:00]} 26. Rg1 {[%emt 0:00:05]} Nf7 {[%emt 0:00:10]} 27. Qf1 {[%emt 0:00:15]} Rh2+ {[%emt 0:00:24]} 28. Kd3 {[%emt 0:00:01]} Qh3 {[%emt 0:00:09]} 29. Nb5 {[%emt 0:00:39]} Ng5 {[%emt 0:01:50]} 30. Nxc7 {[%emt 0:00:22]} Nf3 {[%emt 0:00:37]} 31. Qxh3 {[%emt 0:00:29]} Rxh3 {[%emt 0:00:01]} 32. Ra1 {[%emt 0:00:09]} Nd4 {[%emt 0:00:21]} 33. Rg1 {[%emt 0:00:25]} Kf7 {[%emt 0:00:05]} 34. Kd2 {[%emt 0:00:07]} Nf3+ {[%emt 0:00:01]} 35. Ke2 {[%emt 0:00:01]} Nxg1+ {[%emt 0:00:02]} 36. Bxg1 {[%emt 0:00:00]} Rc3 {[%emt 0:00:12]} 37. Nb5 {[%emt 0:00:04]} Rc1 {[%emt 0:00:29]} 38. Bxb6 {[%emt 0:00:24]} Bf8 {[%emt 0:00:13]} 39. Kd3 {[%emt 0:00:00]} h4 {[%emt 0:00:01]} 40. Be3 {[%emt 0:00:00]} Rb1 {[%emt 0:00:14]} 41. c5 {[%emt 0:00:08]} dxc5 {[%emt 0:00:02]} 42. Nc3 {[%emt 0:00:05]} Rxb4 {[%emt 0:00:05]} 43. Bg1 {[%emt 0:00:12]} h3 {[%emt 0:00:05]} 0-1

[Event "European Corporate Championship 2022"]
[Site "Rotterdam"]
[Date "2022.06.18"]
[Round "2.4"]
[White "Basiaga, Sebastian"]
[Black "Muller, Kenneth"]
[Result "1-0"]
[ECO "B01"]
[WhiteElo "1749"]
[BlackElo "1884"]
[Annotator "NA RC"]
[PlyCount "103"]
[EventDate "2022.06.18"]
[EventType "team-tourn"]
[EventCountry "NED"]
[SourceTitle "playchess.com"]
[Source "ChessBase"]
[SourceQuality "1"]
[TimeControl "900+5"]

1. e4 {[%emt 0:00:02]} d5 {[%emt 0:00:04]} 2. exd5 {[%emt 0:00:04]} Qxd5 {[%emt 0:00:02]} 3. Nc3 {[%emt 0:00:02]} Qd8 {[%emt 0:00:01]} 4. d4 {[%emt 0:00:04]} Nf6 {[%emt 0:00:02]} 5. Nf3 {[%emt 0:00:07]} Bg4 {[%emt 0:00:03]} 6. Be2 {[%emt 0:00:36]} e6 {[%emt 0:00:08]} 7. Be3 {[%emt 0:00:45]} c6 {[%emt 0:00:13]} 8. Ne5 {[%emt 0:00:20]} Bxe2 {[%emt 0:00:04]} 9. Qxe2 {[%emt 0:00:08]} Nbd7 {[%emt 0:00:15]} 10. O-O {[%emt 0:01:06]} Bd6 {[%emt 0:00:36]} 11. Nc4 {[%emt 0:00:26]} Bc7 {[%emt 0:00:10]} 12. Bg5 {[%emt 0:00:20]} h6 {[%emt 0:01:50]} 13. Bh4 {[%emt 0:00:09]} g5 {[%emt 0:00:43]} 14. Bg3 {[%emt 0:00:04]} Bxg3 {[%emt 0:00:10]} 15. hxg3 {[%emt 0:00:03]} Qe7 {[%emt 0:00:45]} 16. a3 {[%emt 0:00:51]} h5 {[%emt 0:00:21]} 17. Rfe1 {[%emt 0:01:25]} Nd5 {[%emt 0:01:32]} 18. Ne4 {[%emt 0:00:47]} O-O-O {[%emt 0:01:00]} 19. b4 {[%emt 0:01:08]} Kb8 {[%emt 0:02:41]} 20. Ne5 {[%emt 0:00:45]} Nxe5 {[%emt 0:01:17]} 21. dxe5 {[%emt 0:00:02]} h4 {[%emt 0:00:04]} 22. g4 {[%emt 0:00:28]} Nf4 {[%emt 0:00:29]} 23. Qe3 {[%emt 0:00:41]} h3 {[%emt 0:00:25]} 24. g3 {[%emt 0:01:06]} Ng2 {[%emt 0:00:17]} 25. Qxg5 {[%emt 0:00:02]} Qxg5 {[%emt 0:00:06]} 26. Nxg5 {[%emt 0:00:02]} Nxe1 {[%emt 0:00:02]} 27. Rxe1 {[%emt 0:00:28]} h2+ {[%emt 0:00:04]} 28. Kh1 {[%emt 0:00:06]} Rd2 {[%emt 0:00:24]} 29. f4 {[%emt 0:00:35]} Rg8 {[%emt 0:00:43]} 30. c4 {[%emt 0:00:15]} Kc7 {[%emt 0:00:08]} 31. Ne4 {[%emt 0:00:16]} Ra2 {[%emt 0:00:04]} 32. g5 {[%emt 0:00:01]} Rxa3 {[%emt 0:00:16]} 33. Kxh2 {[%emt 0:00:06]} Rh8+ {[%emt 0:00:01]} 34. Kg2 {[%emt 0:00:09]} Ra2+ {[%emt 0:00:01]} 35. Kf3 {[%emt 0:00:21]} Rc2 {[%emt 0:00:15]} 36. Nd6 {[%emt 0:00:09]} Rh7 {[%emt 0:00:13]} 37. c5 {[%emt 0:00:35]} Rb2 {[%emt 0:00:39]} 38. Re4 {[%emt 0:00:06]} a6 {[%emt 0:00:07]} 39. Rd4 {[%emt 0:00:04]} Rb3+ {[%emt 0:00:34]} 40. Kg4 {[%emt 0:00:01]} Rh1 {[%emt 0:00:53]} 41. Nxf7 {[%emt 0:00:33]} Rg1 {[%emt 0:00:01]} 42. Kh5 {[%emt 0:00:05]} Rbxg3 {[%emt 0:00:09]} 43. Nd8 {[%emt 0:00:16]} Rh3+ {[%emt 0:00:29]} 44. Kg6 {[%emt 0:00:03]} Rh8 {[%emt 0:00:02]} 45. Nxe6+ {[%emt 0:00:01]} Kb8 {[%emt 0:00:00]} 46. f5 {[%emt 0:00:41]} Rgh1 {[%emt 0:00:17]} 47. f6 {[%emt 0:00:12]} Rg8+ {[%emt 0:00:02]} 48. Ng7 {[%emt 0:00:35]} Re1 {[%emt 0:00:12]} 49. f7 {[%emt 0:00:18]} Rf8 {[%emt 0:00:02]} 50. e6 {[%emt 0:00:07]} Kc8 {[%emt 0:00:04]} 51. Kf6 {[%emt 0:00:09]} Rf1+ {[%emt 0:00:01]} 52. Nf5 {[%emt 0:00:02]} 1-0

[Event "European Corporate Championship 2022"]
[Site "Rotterdam"]
[Date "2022.06.18"]
[Round "2.5"]
[White "Pardo Simon, David"]
[Black "Nijboer, Friso"]
[Result "1-0"]
[ECO "E92"]
[WhiteElo "2461"]
[BlackElo "2464"]
[Annotator "TA"]
[PlyCount "71"]
[EventDate "2022.06.18"]
[EventType "team-tourn"]
[EventCountry "NED"]
[SourceTitle "playchess.com"]
[Source "ChessBase"]
[SourceQuality "1"]
[TimeControl "900+5"]

{[%evp 24,71,6,12,29,23,27,22,14,4,39,25,47,43,319,325,337,316,452,448,445,375,424,413,419,370,421,414,473,461,677,382,416,411,389,397,497,496,454,327,515,506,485,466,685,632,877,656,962,952]} 1. Nf3 {[%emt 0:00:04]} g6 {[%emt 0:00:08]} 2. d4 {[%emt 0:00:24]} Nf6 {[%emt 0:00:04]} 3. c4 {[%emt 0:00:17]} Bg7 {[%emt 0:00:03]} 4. Nc3 {[%emt 0:00:02]} d6 {[%emt 0:00:07]} 5. e4 {[%emt 0:00:09]} O-O {[%emt 0:00:02]} 6. Be2 {[%emt 0:00:02]} e5 {[%emt 0:00:05]} 7. Be3 {[%emt 0:00:02]} exd4 {[%emt 0:00:42]} 8. Nxd4 {[%emt 0:00:56]} Re8 {[%emt 0:00:01]} 9. f3 {[%emt 0:00:31]} c6 {[%emt 0:00:02]} 10. Bf2 {[%emt 0:01:44]} d5 {[%emt 0:00:02]} 11. exd5 {[%emt 0:00:07]} cxd5 {[%emt 0:00:02]} 12. O-O {[%emt 0:00:11]} Nc6 {[%emt 0:00:04]} 13. c5 {[%emt 0:00:21]} Bd7 {[%emt 0:00:02] E92: King's Indian: Classical: 6 Be2 e5: 7 dxe5, 7 Be3 and Petrosian System without 7...Nbd7.} 14. Re1 {[%emt 0:00:24]} Bf8 {[%emt 0:01:53]} 15. Kh1 {[%emt 0:00:55]} Rc8 {[%emt 0:00:40] [#] The position is equal.} 16. Ndb5 $146 {[%emt 0:02:21]} ({Predecessor:} 16. Nxc6 bxc6 17. Qa4 Rb8 18. b3 a5 19. a3 Nh5 20. Bf1 Bg7 21. Rxe8+ Bxe8 22. Rc1 {0-1 (35) Van Leusden,D (2016)-Schippers,M (2270) Groningen 2018}) 16... d4 {[%emt 0:01:06]} 17. Nxd4 {[%emt 0:00:27]} Nxd4 {[%emt 0:00:04]} 18. Bxd4 {[%emt 0:00:01]} Bxc5 $2 {[%emt 0:00:03][%mdl 8192] [#]} (18... Bc6 $14) 19. Bxf6 $18 {[%emt 0:00:15]} Qxf6 {[%emt 0:00:20]} 20. Qxd7 {[%emt 0:00:02]} Bd4 {[%emt 0:00:08]} (20... Qe7 $142 21. Qxe7 Rxe7) 21. Ne4 {[%emt 0:01:10]} Qg7 {[%emt 0:00:46]} 22. Nd6 {[%emt 0:01:09]} Red8 {[%emt 0:00:01]} 23. Qxc8 {[%emt 0:00:01]} Rxc8 {[%emt 0:00:01]} 24. Nxc8 {[%emt 0:00:01]} Bxb2 {[%emt 0:00:01]} 25. Rad1 {[%emt 0:00:02] [#] Strongly threatening Rd8+.} Qc3 {[%emt 0:00:19]} 26. Nd6 {[%emt 0:00:08]} Ba3 {[%emt 0:00:17]} (26... Kg7 $142 27. Bd3 Ba3 28. Nxb7 Qb2) 27. Ne4 {[%emt 0:00:14]} Qc6 {[%emt 0:10:17]} 28. Rd8+ {[%emt 0:00:24]} Kg7 {[%emt 0:00:00]} 29. Red1 {[%emt 0:00:01]} a5 {[%emt 0:00:00]} 30. R8d7 {[%emt 0:00:11]} h6 {[%emt 0:00:00]} 31. R7d5 {[%emt 0:00:12]} Bb4 {[%emt 0:00:00]} (31... Qc2 $142 32. R5d2 (32. Rxa5 Qxe2 33. Rb1 Qd3 $11) 32... Qc6) 32. Bb5 {[%emt 0:00:22] White is clearly winning.} Qc2 {[%emt 0:00:00]} 33. a4 {[%emt 0:00:12]} g5 {[%emt 0:00:00]} (33... b6 $142 34. Nd6 Bxd6 35. Rxd6 h5) 34. Rd7 {[%emt 0:00:54]} g4 {[%emt 0:00:00]} 35. Rf1 {[%emt 0:00:12]} b6 {[%emt 0:00:00]} 36. Ng3 {[%emt 0:00:50] Black got outplayed after the opening.  Weighted Error Value: White=0.37/Black=0.93} 1-0